bitfinex/quotes_ETHUSD_20260225
["timestamp","ask_amount","ask_price","bid_price","bid_amount"]
[1772032254837,10.87801217,1994.7,1993.6,2.51717206]
[1772032255040,0.002,1994.4,1993.6,2.51717206]
[1772032255363,5.86460418,1994.3,1993.2,9.24587916]
[1772032256055,5.86460418,1994.3,1993.3,2.51717206]
[1772032256258,0.002,1994.4,1993.5,2.51717206]
[1772032256551,2.04,1994.3,1993.5,9.00904248]
[1772032256760,2.04,1994.3,1993.5,6.49187042]
[1772032256944,1.25363554,1994.2,1993.4,1.25413865]
[1772032257538,1.25363554,1994.2,1993.3,1.25415646]
[1772032258154,3.29361595,1994.3,1993.3,3.77132852]
[1772032258355,3.29361595,1994.3,1993.4,17.885712]
[1772032258553,3.29358148,1994.3,1993.5,2.51717206]
[1772032258761,3.29358148,1994.3,1993.3,7.74602688]
[1772032259160,8.88111061,1994.2,1993.2,3.24220952]
[1772032259380,8.88111061,1994.0,1993.0,1.25437268]
[1772032259548,6.36393855,1993.9,1993.0,1.25437268]
[1772032259748,8.40293855,1993.8,1992.8,1.25447217]
[1772032260362,8.40293855,1993.8,1992.8,10.26351465]
[1772032260551,6.36393855,1994.1,1993.2,2.51717206]
[1772032260740,2.039,1994.0,1993.4,2.51717206]
[1772032261052,7.61776271,1993.9,1992.9,7.7462878]
[1772032261565,7.61776271,1993.9,1992.9,1.25441738]
[1772032262135,1.25382416,1993.9,1992.9,7.7462878]
[1772032262757,7.05429665,1994.0,1992.9,7.7462878]
[1772032262758,3.29280574,1994.0,1993.0,9.00904248]
[1772032263253,3.29280574,1994.0,1993.2,9.00904248]
[1772032264054,3.29280574,1994.0,1993.1,1.25432742]
[1772032264255,6.36393855,1993.9,1992.9,7.74627939]
[1772032264455,8.88111061,1993.8,1992.9,1.25444999]
[1772032265265,1.25394994,1993.7,1992.8,11.5098883]
[1772032265463,2.039,1993.6,1992.9,6.49187042]
[1772032265663,2.039,1993.6,1993.0,2.51717206]
[1772032266062,2.039,1993.6,1992.9,6.49187042]
[1772032266435,2.039,1993.6,1992.9,9.00904248]
[1772032266640,2.039,1993.6,1993.0,6.49187042]
[1772032267353,2.038,1994.0,1993.1,10.2633699]
[1772032267554,2.038,1994.0,1993.1,12.2553699]
[1772032267750,1.25357268,1994.3,1993.4,6.49187042]
[1772032269382,1.25357268,1994.3,1993.2,1.25423262]
[1772032269383,8.88111061,1994.1,1993.2,1.25423262]
[1772032269579,8.88111061,1994.1,1993.1,11.52718659]
[1772032269758,1.25357268,1994.3,1993.3,9.00904248]
[1772032269958,3.29355914,1994.4,1993.5,9.00904248]
[1772032270588,3.29355914,1994.4,1993.5,6.49187042]
[1772032270800,3.29355914,1994.4,1993.7,6.49187042]
[1772032270801,0.002,1994.4,1993.7,6.49187042]
[1772032270962,1.25552531,1994.4,1993.7,6.49187042]
[1772032271487,0.002,1994.4,1993.6,1.991]
[1772032271688,0.002,1994.4,1993.6,3.24500329]
[1772032271866,0.002,1994.4,1993.6,3.24500791]
[1772032272060,6.36593855,1994.4,1993.4,5.01650801]
[1772032272994,0.002,1994.4,1993.6,2.51717206]
[1772032273165,0.002,1994.4,1993.6,9.00904248]
[1772032273369,0.002,1994.4,1993.7,1.25394994]
[1772032274908,0.002,1994.4,1993.6,6.49187042]
[1772032275096,6.36593855,1994.4,1993.4,1.25407574]
[1772032275600,8.88111061,1994.0,1993.1,1.2553216]
[1772032275804,2.034,1993.9,1993.1,1.2553216]
[1772032277795,2.034,1993.9,1993.3,2.51717206]
[1772032277993,3.28782575,1993.9,1993.1,2.51817206]
[1772032278504,3.28782575,1993.9,1993.1,9.01004248]
[1772032278806,3.28782575,1993.9,1993.1,6.49287042]
[1772032278982,3.28782575,1993.9,1993.1,9.01004248]
[1772032278983,1.25382575,1993.9,1993.1,9.01004248]
[1772032279175,1.25382575,1993.9,1993.2,6.49187042]
[1772032279904,5.01458523,1994.2,1993.3,1.25420157]
[1772032280403,11.37852378,1994.2,1993.3,1.25420157]
[1772032281006,11.37852378,1994.2,1993.2,7.7460867]
[1772032281180,6.36393855,1994.1,1993.2,1.25421628]
[1772032281379,6.36393855,1993.9,1993.1,0.001]
[1772032281587,2.032,1993.8,1993.1,1.25532365]
[1772032281795,2.032,1993.8,1993.3,2.51717206]
[1772032281980,2.032,1993.8,1993.3,1.25415148]
[1772032282180,1.25387834,1993.9,1993.3,1.25415148]
[1772032282807,1.25387834,1993.9,1993.2,1.25426449]
[1772032283806,0.002,1993.7,1993.2,1.25426449]
[1772032283973,0.002,1993.7,1993.1,5.0180948]
[1772032284602,0.002,1993.7,1993.1,1.25532742]
[1772032286278,0.002,1993.8,1993.5,2.51717206]
[1772032286489,0.002,1994.0,1993.3,8.83157541]
[1772032286897,0.002,1994.0,1993.6,2.51717206]
[1772032287087,0.002,1994.4,1994.0,8.83157541]
[1772032287282,0.002,1994.4,1993.8,1.996]
[1772032287482,0.002,1994.4,1993.8,1.995]
[1772032287683,7.67758257,1994.4,1993.4,1.995]
[1772032288304,7.67758257,1994.4,1993.5,1.25407574]
[1772032289017,1.25552052,1994.4,1993.5,7.56847909]
[1772032289183,0.002,1994.4,1993.6,8.83157541]
[1772032289501,0.002,1994.5,1994.0,8.48173841]
[1772032289683,0.002,1994.7,1994.0,10.47673841]
[1772032289875,0.002,1994.7,1994.1,5.96456635]
[1772032290278,0.002,1994.7,1994.2,1.25363554]
[1772032291088,2.028,1995.5,1994.4,8.48173841]
[1772032291287,2.028,1995.5,1994.4,10.47773841]
[1772032291288,5.01173142,1995.4,1994.4,10.47773841]
[1772032291805,5.01173142,1995.4,1994.8,2.51717206]
[1772032291806,1.25288162,1995.4,1994.8,2.51717206]
[1772032292002,3.28086104,1995.5,1994.8,2.51717206]
[1772032292413,3.28081978,1995.5,1994.8,3.77038269]
[1772032293283,2.028,1995.5,1995.0,2.51717206]
[1772032293487,0.002,1995.6,1995.2,2.51717206]
[1772032294390,0.002,1995.6,1994.9,5.96456635]
[1772032294391,0.002,1995.6,1995.1,1.25307002]
[1772032294986,0.002,1995.6,1995.0,7.52945214]
[1772032294987,0.002,1995.6,1994.8,1.996]
[1772032295204,6.46916569,1995.6,1994.5,1.25341464]
[1772032295782,6.46916569,1995.6,1994.4,3.2495044]
[1772032296013,2.51717206,1995.5,1994.4,7.96056635]
[1772032296213,8.49316569,1995.4,1994.4,9.73524767]
[1772032296411,1.25294441,1995.3,1994.7,1.2533213]
[1772032297711,0.002,1995.6,1995.0,2.51717206]
[1772032297894,1.25475844,1995.6,1995.0,2.51717206]
[1772032298215,1.25475775,1995.6,1995.0,2.4696361]
[1772032298409,0.002,1995.6,1995.1,1.25307002]
[1772032298902,0.002,1995.2,1995.1,1.25307002]
[1772032299101,0.002,1995.6,1995.1,1.25307002]
[1772032299302,0.002,1995.6,1995.0,3.72272699]
[1772032299613,0.002,1995.3,1994.8,1.25320251]
[1772032299817,0.002,1995.3,1994.3,5.96456635]
[1772032300109,0.002,1995.3,1994.4,2.9822]
[1772032300406,0.002,1995.3,1994.6,1.25338413]
[1772032300824,0.002,1995.3,1994.3,7.21808529]
[1772032300985,6.46916569,1995.3,1994.2,4.51517206]
[1772032301184,6.46916569,1995.3,1994.2,3.25163309]
[1772032301385,6.46916569,1995.3,1994.4,2.51717206]
[1772032301698,0.002,1995.3,1994.6,2.51717206]
[1772032302219,0.002,1995.3,1994.4,2.51717206]
[1772032302596,0.002,1995.3,1994.6,2.51717206]
[1772032303598,6.46916569,1995.3,1994.4,1.25347332]
[1772032304516,6.46916569,1995.3,1994.3,1.25353812]
[1772032304726,6.46716569,1995.0,1993.9,1.25382416]
[1772032305017,6.46716569,1994.7,1993.6,1.25396475]
[1772032305229,6.46716569,1994.7,1993.7,2.51717206]
[1772032305405,2.022,1994.9,1994.1,2.51717206]
[1772032305600,2.022,1994.9,1993.9,2.51717206]
[1772032305800,2.022,1994.9,1994.2,2.51717206]
[1772032306114,2.022,1994.9,1994.0,5.96456635]
[1772032306312,1.25300721,1995.2,1994.1,2.51717206]
[1772032306629,3.27400721,1995.2,1994.1,2.51717206]
[1772032306840,3.27400721,1995.2,1994.2,1.25363554]
[1772032307617,3.27400721,1995.2,1994.3,3.52265867]
[1772032308213,3.27400721,1995.2,1994.3,5.51865867]
[1772032308828,9.7411729,1995.2,1994.3,1.996]
[1772032309025,6.46716569,1995.1,1994.3,3.24957105]
[1772032309402,6.46716569,1995.1,1994.0,3.24976128]
[1772032309604,6.46716569,1995.1,1994.1,2.5349]
[1772032310212,5.01402886,1995.3,1994.2,5.96456635]
[1772032310213,0.002,1995.3,1994.2,5.96456635]
[1772032310413,0.002,1995.3,1994.5,5.96456635]
[1772032310614,0.002,1995.3,1994.7,9.48722502]
[1772032310812,0.002,1995.3,1994.7,5.96456635]
[1772032311031,0.002,1995.3,1994.8,1.25325847]
[1772032312138,0.002,1995.3,1994.7,1.25327479]
[1772032312432,0.002,1995.3,1994.6,5.01340305]
[1772032312433,0.002,1995.3,1994.5,3.25144697]
[1772032312731,0.002,1995.3,1994.4,5.01381713]
[1772032312732,6.46916569,1995.3,1994.4,0.001]
[1772032312935,1.25300721,1995.2,1994.4,0.001]
[1772032313918,7.7201729,1995.2,1994.4,0.001]
[1772032320413,6.30613361,1995.1,1994.4,0.001]
[1772032320623,6.30613361,1994.9,1994.4,0.001]
[1772032320839,2.022,1995.0,1994.4,0.001]
[1772032321046,7.55914082,1995.2,1994.4,0.001]
[1772032321358,2.023,1995.1,1994.5,19.15068467]
[1772032321523,2.023,1995.1,1994.5,3.52265867]
[1772032322035,0.002,1995.3,1994.8,3.52265867]
[1772032322246,1.25495441,1995.3,1994.6,7.66744077]
[1772032322541,1.25494478,1995.3,1994.6,7.66744077]
[1772032322744,0.002,1995.3,1994.6,7.66744077]
[1772032323527,0.002,1995.3,1994.4,0.001]
[1772032323528,6.30613361,1995.0,1994.4,0.001]
[1772032323845,7.55932925,1994.9,1994.4,0.001]
[1772032324024,8.32713361,1994.8,1994.3,0.001]
[1772032324211,6.30613361,1994.7,1993.5,1.25505628]
[1772032324417,6.30613361,1994.7,1993.6,9.93671531]
[1772032324637,6.30613361,1994.5,1993.5,0.001]
[1772032325225,3.52265867,1994.3,1993.5,0.001]
[1772032325545,6.30613361,1994.2,1993.5,0.001]
[1772032325713,8.32713361,1994.1,1993.5,0.001]
[1772032325917,7.55989489,1994.0,1993.5,0.001]
[1772032326123,6.30613361,1993.7,1993.0,0.001]
[1772032326420,2.021,1993.6,1993.0,0.001]
[1772032326744,6.30613361,1993.7,1993.0,0.001]
[1772032326929,2.022,1993.6,1993.0,1.25537626]
[1772032327123,2.022,1993.6,1993.0,0.001]
[1772032327324,6.30613361,1993.5,1993.0,0.001]
[1772032327635,6.30613361,1993.4,1992.6,0.001]
[1772032327830,6.30613361,1993.2,1992.6,0.001]
[1772032328032,8.32713361,1993.1,1992.6,0.001]
[1772032328570,6.30613361,1993.0,1992.3,0.001]
[1772032328850,2.022,1993.1,1992.3,0.001]
[1772032329354,6.30613361,1993.0,1992.3,0.001]
[1772032330046,1.2544533,1992.9,1992.3,0.001]
[1772032330346,7.56058691,1992.9,1991.8,1.25514609]
[1772032331535,1.25432742,1993.1,1992.2,3.52265867]
[1772032331751,6.13550816,1993.8,1992.3,4.619104]
[1772032331752,2.024,1993.4,1992.3,4.619104]
[1772032332268,7.56033518,1993.3,1992.4,1.25476811]
[1772032332465,7.56033518,1993.3,1991.9,8.95370686]
[1772032332466,6.30613361,1993.1,1991.9,8.95370686]
[1772032332630,8.32913361,1993.0,1991.9,7.66909028]
[1772032333234,6.30613361,1992.9,1991.8,1.25510125]
[1772032333461,6.30613361,1992.9,1991.9,17.623389]
[1772032333758,2.023,1993.0,1992.0,6.41405664]
[1772032334153,9.82879228,1992.9,1991.7,2.772186]
[1772032334491,1.25451625,1992.8,1991.8,1.25514609]
[1772032335935,1.25451625,1992.8,1991.8,7.66920273]
[1772032336351,5.01806503,1992.9,1991.8,7.66920273]
[1772032338936,3.27932742,1993.1,1992.3,6.38894664]
[1772032339657,3.27918332,1993.4,1992.5,3.52265867]
[1772032339858,3.27918332,1993.4,1992.5,9.93671531]
[1772032340169,3.27918332,1993.4,1992.6,36.41405664]
[1772032340170,2.025,1993.4,1992.6,36.41405664]
[1772032340351,0.002,1993.5,1992.8,3.52265867]
[1772032340741,6.30813361,1993.5,1992.6,1.25460053]
[1772032341733,6.30613361,1993.2,1992.0,3.24498762]
[1772032341938,2.024,1993.1,1992.1,2.6952]
[1772032342161,6.30613361,1993.0,1992.0,3.24498762]
[1772032342735,1.2544533,1992.9,1992.1,2.510146]
[1772032343170,5.01680305,1993.4,1992.1,8.92420264]
[1772032343336,2.024,1993.3,1992.2,9.77240964]
[1772032343646,2.024,1993.3,1992.2,6.41405664]
[1772032344474,8.33013361,1993.3,1992.2,6.41405664]
[1772032344969,8.33013361,1993.3,1992.4,34.54410264]
[1772032344970,3.27824431,1993.3,1992.4,34.54410264]
[1772032345176,3.27821577,1993.3,1992.5,6.41405664]
[1772032345386,1.25421577,1993.3,1992.5,6.41405664]
[1772032345554,3.27821577,1993.3,1992.5,6.41405664]
[1772032345971,2.024,1993.3,1992.5,6.41405664]
[1772032346173,1.25419606,1993.4,1992.5,9.93671531]
[1772032346360,5.01846406,1993.5,1992.8,3.52265867]
[1772032346361,0.002,1993.5,1992.8,3.52265867]
[1772032346567,1.2560854,1993.5,1992.7,2.691077]
[1772032346782,1.2560854,1993.5,1992.4,1.99]
[1772032346985,3.52265867,1993.3,1992.1,3.7945443]
[1772032347171,2.023,1993.2,1992.1,3.7945443]
[1772032347691,2.023,1993.2,1992.2,1.25489408]
[1772032348058,2.023,1993.2,1992.3,24.25822453]
[1772032348259,0.002,1993.5,1992.5,6.31172753]
[1772032348692,6.01640185,1993.5,1992.2,9.55762161]
[1772032349094,6.01440185,1993.3,1992.2,9.55762161]
[1772032349386,2.023,1993.2,1992.2,9.55762161]
[1772032350284,2.023,1993.2,1992.2,9.55682161]
[1772032351163,1.25432742,1993.1,1992.3,27.06145512]
[1772032351365,1.25432742,1993.1,1992.3,5.93056612]
[1772032351684,1.25432742,1993.1,1992.2,3.24509408]
[1772032352393,7.23036401,1993.1,1992.2,1.25409408]
[1772032352958,1.25432742,1993.1,1992.2,7.1846602]
[1772032353164,1.25432742,1993.1,1992.2,7.1838602]
[1772032353369,2.022,1993.2,1992.4,5.93056612]
[1772032354280,0.002,1993.1,1992.4,5.93056612]
[1772032354671,0.002,1993.1,1992.3,1.995]
[1772032355489,1.25632742,1993.1,1992.4,1.25476811]
[1772032356290,1.25632742,1993.1,1992.4,1.25396811]
[1772032356766,1.25632742,1993.1,1992.2,0.001]
[1772032356767,5.97603659,1992.8,1992.2,0.001]
[1772032356967,7.99703659,1992.7,1992.2,0.001]
[1772032358095,1.25464217,1992.6,1992.2,0.001]
[1772032358493,2.021,1992.7,1992.2,0.001]
[1772032358672,3.27736839,1993.1,1992.2,5.93156612]
[1772032358883,5.97603659,1992.8,1992.2,0.001]
[1772032359192,7.99703659,1992.7,1992.2,0.0002]
[1772032359368,5.97603659,1992.6,1992.2,0.0002]
[1772032359791,5.97603659,1992.6,1992.0,0.001]
[1772032359792,9.49869526,1992.6,1992.0,0.001]
[1772032359974,5.97603659,1992.5,1991.9,0.001]
[1772032360472,7.2308047,1992.4,1991.9,0.001]
[1772032360666,2.022,1992.3,1991.9,0.001]
[1772032361886,1.25476811,1992.4,1991.9,0.001]
[1772032362086,3.27876811,1992.4,1991.9,0.001]
[1772032362291,3.27876811,1992.4,1991.9,0.0002]
[1772032363201,1.25477539,1992.4,1991.9,0.0002]
[1772032363388,5.01868918,1992.6,1991.9,0.0002]
[1772032363588,3.27955441,1992.8,1991.9,9.45342479]
[1772032364099,9.255591,1992.8,1991.9,0.0002]
[1772032365197,5.97803659,1993.1,1992.0,3.52265867]
[1772032365379,5.97803659,1993.1,1992.1,5.93056612]
[1772032365578,7.23237757,1993.1,1992.1,5.93056612]
[1772032366497,0.002,1993.1,1992.2,5.93056612]
[1772032366673,0.002,1993.1,1992.4,5.93056612]
[1772032366879,0.002,1993.1,1992.6,26.078714]
[1772032367078,0.002,1993.4,1992.7,5.93056612]
[1772032367276,2.026,1993.6,1993.2,2.51828064]
[1772032367277,0.002,1993.6,1993.2,2.51828064]
[1772032367483,0.002,1993.6,1993.1,5.93056612]
[1772032367708,0.002,1993.6,1992.8,7.18508237]
[1772032367895,1.25601732,1993.6,1992.8,7.18508237]
[1772032368305,1.25601732,1993.6,1992.8,9.70336301]
[1772032368306,0.002,1993.6,1992.8,9.70336301]
[1772032368912,0.002,1993.6,1993.0,2.51828064]
[1772032369290,0.002,1993.6,1993.1,1.25432742]
[1772032370594,0.002,1993.6,1993.0,1.25434906]
[1772032370790,5.97603659,1993.5,1992.7,1.25457921]
[1772032371016,2.021,1993.4,1992.7,1.25457921]
[1772032371523,3.27518529,1993.4,1992.6,5.01841944]
[1772032372600,3.27518529,1993.4,1992.6,1.25464217]
[1772032372806,3.27518529,1993.4,1992.2,16.92057649]
[1772032372807,7.99703659,1993.4,1992.2,16.92057649]
[1772032373007,5.97603659,1993.3,1992.2,10.62229585]
[1772032373206,5.97603659,1993.1,1992.2,1.991]
[1772032373594,4.53928064,1993.4,1992.3,5.93056612]
[1772032374101,2.019,1993.3,1992.4,5.93056612]
[1772032374298,2.019,1993.3,1992.7,8.44884676]
[1772032374612,2.019,1993.3,1992.8,5.93056612]
[1772032374929,2.019,1993.3,1992.4,5.93056612]
[1772032377427,2.019,1993.3,1992.5,6.26326194]
[1772032378023,2.019,1993.3,1992.1,8.96399167]
[1772032378231,2.019,1993.3,1992.2,6.26326194]
[1772032379140,8.29651572,1993.3,1992.2,6.26326194]
[1772032379343,6.27751572,1993.2,1992.2,6.26326194]
[1772032380416,0.002,1993.6,1992.4,2.51828064]
[1772032380417,6.27951572,1993.6,1992.4,2.51828064]
[1772032380636,2.015,1993.5,1992.4,8.78154258]
[1772032380850,2.015,1993.5,1992.5,6.26326194]
[1772032381337,6.27751572,1993.5,1992.5,6.26326194]
[1772032381537,6.27751572,1993.3,1992.2,6.26326194]
[1772032382044,6.27751572,1993.3,1992.4,6.26326194]
[1772032383013,6.27751572,1993.3,1992.3,2.51928064]
[1772032383014,8.79579636,1993.0,1992.3,0.001]
[1772032383242,10.80879636,1993.0,1992.3,0.001]
[1772032384665,8.79579636,1992.6,1992.0,0.001]
[1772032384957,2.014,1992.5,1992.0,0.001]
[1772032385537,2.014,1992.9,1992.0,0.001]
[1772032385731,2.014,1993.1,1992.2,2.51828064]
[1772032385952,2.014,1993.1,1992.1,6.26326194]
[1772032386154,8.29151572,1993.1,1992.1,6.26326194]
[1772032386539,2.014,1993.1,1992.1,8.78154258]
[1772032387086,8.29151572,1993.1,1992.1,6.26326194]
[1772032387957,2.014,1993.1,1992.2,6.26326194]
[1772032388148,6.27951572,1993.4,1992.4,6.26326194]
[1772032388335,2.013,1993.3,1992.4,6.26326194]
[1772032388534,8.29051572,1993.3,1992.2,2.55283098]
[1772032388831,6.27751572,1993.2,1992.2,2.55283098]
[1772032389031,6.27751572,1992.8,1992.0,0.001]
[1772032389253,6.27751572,1992.7,1992.0,0.001]
[1772032389456,6.27751572,1992.6,1992.0,0.001]
[1772032389664,2.012,1992.8,1992.0,0.001]
[1772032390150,6.27751572,1992.7,1992.0,0.001]
[1772032390964,2.012,1992.8,1992.0,2.51928064]
[1772032391171,2.012,1992.8,1992.0,8.78254258]
[1772032391365,2.012,1993.2,1992.2,8.78154258]
[1772032392045,2.012,1993.2,1992.4,8.78154258]
[1772032392247,0.002,1993.5,1992.6,8.78154258]
[1772032392490,0.002,1993.5,1992.8,8.78154258]
[1772032392792,0.002,1993.5,1993.0,8.78154258]
[1772032392963,0.002,1993.5,1993.1,6.26326194]
[1772032395477,0.002,1993.5,1992.8,10.76254258]
[1772032395677,0.002,1993.0,1992.8,8.24426194]
[1772032395982,0.002,1993.5,1992.9,6.26326194]
[1772032396168,0.002,1993.3,1992.9,6.26326194]
[1772032396470,0.002,1993.3,1992.8,4.49928064]
[1772032396471,0.002,1993.5,1993.2,2.51828064]
[1772032396656,0.002,1993.5,1993.1,6.26326194]
[1772032398562,0.002,1993.6,1993.1,6.26326194]
[1772032400649,0.002,1993.6,1992.8,8.24426194]
[1772032400851,8.79779636,1993.6,1992.5,8.24426194]
[1772032401047,6.27751572,1993.5,1992.5,8.24426194]
[1772032401252,6.27751572,1993.5,1992.6,8.78154258]
[1772032401783,6.27751572,1993.5,1992.5,1.981]
[1772032402679,0.002,1993.6,1992.6,6.26326194]
[1772032403062,6.27951572,1993.6,1992.6,6.26326194]
[1772032403261,6.27951572,1993.6,1992.5,1.981]
[1772032403459,2.51828064,1993.4,1992.5,1.981]
[1772032403664,6.27751572,1993.3,1992.5,1.981]
[1772032403884,8.79579636,1993.2,1992.1,1.981]
[1772032404473,6.27751572,1993.1,1992.1,1.981]
[1772032404679,6.27751572,1992.9,1992.1,1.981]
[1772032406158,6.27751572,1992.9,1992.1,0.001]
[1772032406792,8.52232373,1992.8,1992.1,0.001]
[1772032406962,6.00404309,1992.7,1992.1,0.001]
[1772032407384,6.00404309,1993.0,1992.1,0.001]
[1772032407595,6.00404309,1992.7,1992.1,0.001]
[1772032407891,6.00404309,1992.7,1992.2,0.001]
[1772032408089,4.51628064,1992.8,1992.0,0.001]
[1772032408090,6.00404309,1992.5,1992.0,0.001]
[1772032408560,8.52232373,1992.4,1992.0,0.001]
[1772032409291,6.00404309,1992.4,1992.0,0.001]
[1772032410085,2.51828064,1992.6,1992.0,0.001]
[1772032410584,1.998,1992.8,1992.0,0.001]
[1772032411993,10.79322862,1992.8,1992.0,0.001]
[1772032412360,8.27494798,1992.8,1992.0,0.001]
[1772032413485,6.27694798,1992.7,1992.0,0.001]
[1772032414365,6.27694798,1992.6,1992.0,0.001]
[1772032414561,8.27394798,1992.9,1992.0,0.001]
[1772032414755,1.997,1992.9,1992.1,6.38929559]
[1772032415655,1.997,1992.9,1992.2,8.90757623]
[1772032415878,0.002,1993.4,1992.3,6.38929559]
[1772032415879,1.996,1993.3,1992.3,6.38929559]
[1772032416795,6.27694798,1993.1,1992.1,2.71888979]
[1772032417164,2.51828064,1993.0,1992.1,2.71888979]
[1772032417574,8.79522862,1993.0,1992.0,6.39029559]
[1772032417892,2.51828064,1993.0,1992.0,6.39029559]
[1772032418192,8.79522862,1993.0,1992.0,6.39029559]
[1772032418508,2.51828064,1992.8,1992.0,0.001]
[1772032419091,1.995,1992.7,1992.0,0.001]
[1772032419997,1.995,1992.7,1992.2,0.001]
[1772032422702,1.996,1992.9,1992.2,0.001]
[1772032423109,1.996,1992.9,1992.2,6.39029559]
[1772032426201,1.996,1992.9,1992.2,8.90857623]
[1772032426373,0.002,1993.0,1992.3,6.38929559]
[1772032426570,0.002,1993.2,1992.7,6.38929559]
[1772032427777,0.002,1993.2,1992.9,6.38929559]
[1772032428297,0.002,1993.4,1992.9,6.38929559]
[1772032429004,0.002,1993.4,1992.9,6.33929559]
[1772032429381,0.002,1993.4,1993.1,6.38929559]
[1772032431698,0.002,1993.6,1993.1,6.38929559]
[1772032431872,0.002,1993.6,1993.3,6.38929559]
[1772032432578,0.002,1993.6,1993.0,8.35329559]
[1772032432779,0.002,1993.6,1993.0,1.964]
[1772032434196,6.27894798,1993.5,1992.6,1.964]
[1772032434702,6.27894798,1993.5,1992.4,6.38929559]
[1772032434703,6.27894798,1993.5,1992.5,1.963]
[1772032436506,6.23362453,1993.4,1992.5,1.963]
[1772032437485,6.23362453,1993.4,1992.6,5.89006319]
[1772032437688,0.002,1993.5,1992.6,5.89006319]
[1772032438211,6.23562453,1993.5,1992.5,1.963]
[1772032438381,6.23362453,1993.4,1992.5,1.963]
[1772032438579,6.23362453,1993.4,1992.2,0.001]
[1772032440588,6.23362453,1993.4,1992.2,5.89106319]
[1772032441501,6.23362453,1993.4,1992.4,5.89006319]
[1772032441877,6.23362453,1993.4,1992.5,7.84906319]
[1772032442282,6.23362453,1993.4,1992.2,5.89106319]
[1772032442503,6.23362453,1993.4,1992.2,0.001]
[1772032442700,1.25420157,1993.3,1992.2,1.25589408]
[1772032443005,6.23362453,1993.2,1992.2,1.25589408]
[1772032443505,6.23362453,1993.2,1992.2,0.001]
[1772032444612,6.23362453,1993.0,1992.2,0.001]
[1772032444801,7.48807783,1992.9,1992.2,0.001]
[1772032445516,1.976,1993.1,1992.3,3.52793169]
[1772032445678,5.01831929,1993.5,1992.3,3.52793169]
[1772032445679,6.23562453,1993.5,1992.4,5.89006319]
[1772032446022,7.48972117,1993.5,1992.6,9.41799488]
[1772032446308,6.23562453,1993.5,1992.7,5.89006319]
[1772032446513,0.002,1993.5,1992.7,5.89006319]
[1772032446719,0.002,1993.5,1992.8,5.89006319]
[1772032446921,0.002,1993.5,1992.9,1.2544533]
[1772032447685,0.002,1993.5,1992.7,1.958]
[1772032447686,6.23562453,1993.5,1992.7,3.21253725]
[1772032448408,6.23562453,1993.5,1992.5,1.25468096]
[1772032448610,6.23562453,1993.5,1992.5,1.25469863]
[1772032448910,6.23562453,1993.5,1992.3,1.2557822]
[1772032448911,6.23362453,1993.3,1992.3,1.2557822]
[1772032449101,6.23362453,1993.2,1992.3,1.2557822]
[1772032449411,6.23362453,1993.2,1992.3,7.14584539]
[1772032450411,7.48974389,1993.5,1992.5,9.41799488]
[1772032450603,7.48974389,1993.5,1992.6,5.89006319]
[1772032451000,7.48974389,1993.5,1992.7,1.25457921]
[1772032451888,7.48974389,1993.5,1992.5,3.21168]
[1772032452322,6.23362453,1993.4,1992.5,1.957]
[1772032452490,6.23362453,1993.2,1992.5,1.957]
[1772032452888,6.23362453,1993.2,1992.5,3.21169306]
[1772032452889,6.23362453,1993.1,1992.5,3.21169306]
[1772032453090,3.22921423,1993.3,1992.5,1.25469306]
[1772032453687,6.23362453,1993.1,1992.3,0.001]
[1772032454900,7.48801489,1993.0,1992.3,0.001]
[1772032457814,1.977,1992.9,1992.3,0.001]
[1772032458217,8.21062453,1992.9,1992.3,0.001]
[1772032458416,8.21062453,1992.9,1992.4,0.001]
[1772032459315,1.25451625,1992.8,1992.4,0.001]
[1772032461426,1.977,1992.9,1992.4,0.001]
[1772032462533,3.23146215,1992.9,1992.4,0.001]
[1772032463729,3.23529349,1993.2,1992.4,5.89106319]
[1772032463929,7.48784967,1993.3,1992.4,0.001]
[1772032464331,6.23362453,1993.1,1992.4,0.001]
[1772032464504,8.21462453,1993.0,1992.4,0.001]
[1772032465707,1.2544533,1992.9,1992.4,0.001]
[1772032466535,1.981,1993.0,1992.4,0.001]
[1772032466736,1.981,1993.0,1992.4,6.42626478]
[1772032467039,3.23818928,1993.4,1992.4,6.42626478]
[1772032467742,9.37021928,1993.4,1992.4,6.42626478]
[1772032467940,9.37021928,1993.4,1992.5,7.67996992]
[1772032468126,3.23815016,1993.4,1992.5,7.67996992]
[1772032468325,1.984,1993.4,1992.5,7.67996992]
[1772032468837,1.984,1993.4,1992.6,6.42526478]
[1772032469424,1.25616487,1993.4,1992.6,6.42526478]
[1772032469739,7.49708592,1993.4,1992.5,1.25470514]
[1772032470522,7.49708592,1993.4,1992.5,6.26227416]
[1772032470732,1.25616487,1993.4,1992.5,6.26227416]
[1772032470924,1.25616487,1993.4,1992.5,6.26327416]
[1772032471553,7.49708592,1993.4,1992.5,6.26327416]
[1772032471721,1.25616487,1993.4,1992.5,6.26327416]
[1772032471925,1.25614604,1993.4,1992.6,6.26227416]
[1772032472319,0.002,1993.4,1992.6,6.26227416]
[1772032472847,0.002,1993.4,1992.7,7.51685337]
[1772032473555,0.002,1993.4,1992.8,6.26227416]
[1772032474950,0.002,1993.4,1992.8,7.51676226]
[1772032476354,0.002,1993.4,1992.8,1.2544881]
[1772032476553,0.002,1993.4,1992.7,3.20053008]
[1772032476934,6.24292105,1993.4,1992.7,3.20053008]
[1772032478351,6.24092105,1993.2,1992.5,7.51796289]
[1772032478549,6.24092105,1993.2,1992.5,1.25569886]
[1772032479475,1.25432742,1993.1,1992.5,0.001]
[1772032479672,7.49524847,1993.1,1992.5,0.001]
[1772032479874,1.25432742,1993.1,1992.5,6.26327416]
[1772032480256,6.24092105,1993.2,1992.5,6.26327416]
[1772032480461,7.49519037,1993.2,1992.5,6.26327416]
[1772032481581,7.49519037,1993.2,1992.6,1.25464217]
[1772032482077,1.25426932,1993.2,1992.6,7.51691633]
[1772032482383,6.99481977,1993.3,1992.6,7.51691633]
[1772032483382,6.99481977,1993.3,1992.6,7.51791633]